bitfinex-derivatives/quotes_SOLF0:USTF0_20250428
["timestamp","ask_amount","ask_price","bid_price","bid_amount"]
[1745802922382,4.72172706,146.93,146.9,6.8048]
[1745802922676,4.72172706,146.93,146.88,4.72172706]
[1745802922875,11.52572706,146.93,146.9,6.8051]
[1745802923084,4.72172706,146.92,146.9,6.8051]
[1745802923383,31.88172706,146.94,146.9,4.72172706]
[1745802923581,2.054,146.98,146.92,4.72172706]
[1745802923885,4.72172706,146.97,146.95,6.8028]
[1745802924077,31.88172706,146.99,146.94,4.72172706]
[1745802924483,4.72172706,146.98,146.95,6.8026]
[1745802925890,4.72172706,146.97,146.92,4.72172706]
[1745802926388,4.72172706,146.95,146.92,6.8039]
[1745802926582,4.72172706,146.93,146.86,35.99842706]
[1745802926892,4.72172706,146.9,146.86,31.2767]
[1745802927285,4.72172706,146.91,146.86,35.99842706]
[1745802927591,4.72172706,146.91,146.89,6.8054]
[1745802928087,6.8065,146.88,146.84,6.8078]
[1745802928286,6.8065,146.88,146.8,3.9446]
[1745802928287,4.72172706,146.85,146.8,3.9446]
[1745802928482,4.72172706,146.83,146.8,3.9446]
[1745802928791,4.72172706,146.81,146.78,24.05091145]
[1745802929284,4.72172706,146.81,146.78,30.86131145]
[1745802929490,7.38900715,146.82,146.78,30.86131145]
[1745802929692,6.8094,146.81,146.78,24.05091145]
[1745802930092,6.8094,146.81,146.75,3.9446]
[1745802930293,14.19800715,146.82,146.75,3.9446]
[1745802930593,34.54900715,146.84,146.75,11.33360715]
[1745802930890,27.16,146.84,146.77,7.38900715]
[1745802931290,6.8084,146.83,146.79,6.8101]
[1745802931491,7.38900715,146.84,146.75,11.33360715]
[1745802931685,7.38900715,146.82,146.75,3.9446]
[1745802933291,6.8095,146.81,146.77,6.811]
[1745802933894,14.19800715,146.82,146.78,6.8106]
[1745802934990,6.8093,146.81,146.75,3.9446]
[1745802935792,14.19800715,146.82,146.77,6.8108]
[1745802936092,7.38900715,146.82,146.75,3.9446]
[1745802936300,7.38900715,146.84,146.75,11.33360715]
[1745802937499,7.38900715,146.84,146.78,6.8103]
[1745802937899,6.8085,146.83,146.78,6.8103]
[1745802938698,6.8085,146.83,146.79,6.8101]
[1745802938903,7.38900715,146.84,146.75,11.33360715]
[1745802939603,14.19700715,146.84,146.8,6.8097]
[1745802941206,14.19700715,146.84,146.79,6.8101]
[1745802941809,14.19700715,146.84,146.75,11.33360715]
[1745802942006,27.14,146.86,146.79,7.38900715]
[1745802942207,36.45640715,146.9,146.85,6.8073]
[1745802942407,6.8057,146.89,146.85,6.8073]
[1745802943611,43.26160715,146.9,146.86,6.8068]
[1745802944409,43.26160715,146.9,146.82,4.045]
[1745802944410,6.8057,146.89,146.85,6.8073]
[1745802945210,6.8061,146.88,146.84,6.8078]
[1745802945612,6.8061,146.88,146.82,4.045]
[1745802947511,7.38900715,146.88,146.82,4.045]
[1745802947713,7.38900715,146.86,146.8,27.16]
[1745802947913,7.38900715,146.86,146.8,33.9696]
[1745802948213,6.8084,146.83,146.77,34.52900715]
[1745802948414,34.52900715,146.86,146.77,27.14]
[1745802948712,6.8081,146.84,146.77,27.14]
[1745802949111,6.8085,146.83,146.8,6.8094]
[1745802949315,6.8085,146.83,146.77,27.14]
[1745802949503,7.38900715,146.84,146.77,27.14]
[1745802950312,6.8089,146.82,146.79,6.8101]
[1745802951413,6.8085,146.83,146.8,6.8097]
[1745802951611,1.939,146.85,146.77,27.14]
[1745802951811,34.52900715,146.86,146.77,34.52900715]
[1745802952011,27.14,146.86,146.79,7.38900715]
[1745802953018,7.38900715,146.88,146.79,7.38900715]
[1745802953314,6.8069,146.87,146.79,7.38900715]
[1745802953716,14.19520715,146.88,146.84,6.8075]
[1745802954216,6.8059,146.89,146.85,6.8072]
[1745802954418,9.29640715,146.9,146.85,6.8072]
[1745802955211,9.29640715,146.9,146.84,6.8078]
[1745802955412,6.8061,146.88,146.84,6.8078]
[1745802955816,7.38900715,146.9,146.81,34.52900715]
[1745802956016,7.38900715,146.9,146.82,2.1156]
[1745802956716,6.8057,146.89,146.85,6.8072]
[1745802956920,7.38900715,146.9,146.85,6.8072]
[1745802957221,6.8057,146.89,146.85,6.8072]
[1745802960823,1.9796,146.94,146.86,27.12]
[1745802961023,7.38900715,146.97,146.87,34.50900715]
[1745802961224,7.38900715,146.97,146.89,7.38900715]
[1745802961422,6.8022,146.97,146.89,34.50900715]
[1745802961825,27.12,146.98,146.89,34.50900715]
[1745802962024,27.12,146.98,146.86,7.38900715]
[1745802962328,7.38900715,146.93,146.87,27.12]
[1745802962629,7.38900715,146.93,146.89,6.8053]
[1745802963127,7.38900715,146.93,146.9,6.805]
[1745802963324,7.38900715,146.95,146.87,27.12]
[1745802963521,7.38900715,146.95,146.87,29.1478]
[1745802963721,7.38900715,146.95,146.92,6.8041]
[1745802964417,7.38900715,146.95,146.87,29.1478]
[1745802964921,7.38900715,146.95,146.92,6.8042]
[1745802966122,14.19180715,146.95,146.92,6.8042]
[1745802966327,14.19180715,146.95,146.91,6.8045]
[1745802967327,14.19180715,146.95,146.92,6.8041]
[1745802967526,6.8034,146.94,146.87,29.1478]
[1745802967725,7.38900715,146.91,146.87,27.12]
[1745802968528,7.38900715,146.93,146.87,27.12]
[1745802968728,27.1,146.94,146.87,27.12]
[1745802969026,7.38900715,146.95,146.87,27.12]
[1745802969221,7.38900715,146.95,146.87,29.1388]
[1745802970428,7.38900715,146.95,146.92,6.8041]
[1745802970825,7.38900715,146.95,146.87,29.1388]
[1745802971033,7.38900715,146.93,146.89,6.8054]
[1745802971528,7.38900715,146.93,146.91,6.8046]
[1745802971930,7.38900715,146.95,146.87,29.1388]
[1745802972125,14.19200715,146.95,146.91,6.8044]
[1745802973331,6.8033,146.94,146.91,6.8044]
[1745802973929,14.19200715,146.95,146.91,6.8044]
[1745802974931,6.8033,146.94,146.91,6.8044]
[1745802975233,7.38900715,146.95,146.91,6.8044]
[1745802975433,14.19210715,146.95,146.91,6.8044]
[1745802976433,14.19210715,146.95,146.92,6.8042]
[1745802976634,27.1,146.97,146.87,29.1388]
[1745802976635,27.1,146.97,146.9,7.38900715]
[1745802977834,34.48900715,146.97,146.88,7.38900715]
[1745802978034,7.38900715,146.95,146.87,29.1388]
[1745802978534,34.48900715,146.97,146.88,7.38900715]
[1745802978735,41.29130715,146.97,146.93,6.8037]
[1745802978930,34.48900715,146.97,146.93,6.8037]
[1745802980637,41.29120715,146.97,146.93,6.8037]
[1745802980837,34.48900715,146.97,146.91,27.1]
[1745802981931,34.48900715,146.97,146.95,6.8027]
[1745802982138,6.8015,146.98,146.95,6.8027]
[1745802982636,14.19010715,146.99,146.95,6.8027]
[1745802983038,6.8014,146.98,146.95,6.8027]
[1745802983832,14.19020715,146.99,146.95,6.8027]
[1745802986838,7.38900715,146.99,146.95,6.8027]
[1745802987232,7.38900715,146.99,146.94,6.8031]
[1745802987439,6.8015,146.98,146.94,6.8031]
[1745802987738,6.8015,146.98,146.95,6.8027]
[1745802987937,14.19010715,146.99,146.95,6.8027]
[1745802988438,7.38900715,146.99,146.96,6.8023]
[1745802990242,14.19010715,146.99,146.96,6.8023]
[1745802990438,7.38900715,146.99,146.96,6.8023]
[1745802990739,27.1,147.0,146.96,6.8023]
[1745802991140,33.9007,147.0,146.96,6.8023]
[1745802991438,34.44900715,147.03,146.95,27.06]
[1745802991741,7.38900715,147.03,146.95,27.06]
[1745802991937,7.38900715,147.03,146.99,6.8007]
[1745802992132,14.18840715,147.03,146.99,6.8007]
[1745802993935,6.7998,147.02,146.98,6.8012]
[1745802994148,7.38900715,146.99,146.9,4.0864]
[1745802994439,7.38900715,146.94,146.9,4.0864]
[1745802994735,7.38900715,146.94,146.9,10.8912]
[1745802994938,7.38900715,146.96,146.9,4.0864]
[1745802995536,7.38900715,146.96,146.91,6.8045]
[1745802997045,14.19180715,146.96,146.91,6.8045]
[1745802997844,7.38900715,146.96,146.9,4.0864]
[1745802998039,7.38900715,147.0,146.91,34.44900715]
[1745802998243,7.38900715,146.98,146.91,27.06]
[1745802999339,7.38900715,146.96,146.91,27.06]
[1745802999544,7.38900715,146.94,146.88,27.06]
[1745803000543,7.38900715,146.92,146.87,1.9066]
[1745803000841,7.38900715,146.88,146.82,27.06]
[1745803001044,6.8076,146.85,146.79,27.06]
[1745803001344,7.38900715,146.84,146.77,6.2373]
[1745803002844,7.38900715,146.84,146.79,6.8102]
[1745803004138,14.19700715,146.84,146.79,6.8102]
[1745803004739,7.38900715,146.82,146.79,6.8102]
[1745803007548,7.38900715,146.82,146.8,6.8095]
[1745803007742,7.38900715,146.84,146.77,4.1314]
[1745803008153,7.38900715,146.84,146.81,6.8092]
[1745803010349,497.20900715,146.9,146.81,34.46900715]
[1745803010551,34.46900715,146.9,146.81,34.46900715]
[1745803011049,7.38900715,146.88,146.81,27.08]
[1745803011349,7.38900715,146.86,146.78,27.08]
[1745803011647,6.8075,146.85,146.8,6.8094]
[1745803011851,34.46900715,146.86,146.8,6.8094]
[1745803012037,7.38900715,146.84,146.8,6.8094]
[1745803012243,6.8085,146.83,146.78,27.08]
[1745803012443,7.38900715,146.82,146.78,27.08]
[1745803012649,14.19820715,146.82,146.78,33.8904]
[1745803012949,14.19820715,146.82,146.78,6.8104]
[1745803014150,7.38900715,146.82,146.79,6.8102]
[1745803014344,6.8084,146.83,146.79,6.8102]
[1745803016151,14.19710715,146.84,146.8,6.8097]
[1745803016743,7.38900715,146.84,146.76,7.38900715]
[1745803017350,6.8084,146.83,146.79,6.8099]
[1745803018549,6.8084,146.83,146.76,7.38900715]
[1745803018851,14.19710715,146.84,146.76,7.38900715]
[1745803019146,34.46900715,146.86,146.81,6.809]
[1745803019342,27.08,146.86,146.79,27.08]
[1745803019541,6.8066,146.87,146.79,31.2553]
[1745803019748,6.8066,146.87,146.83,6.8081]
[1745803020241,7.38900715,146.88,146.79,31.2553]
[1745803020551,7.38900715,146.86,146.79,31.2553]
[1745803020848,6.8077,146.85,146.81,6.8089]
[1745803021350,7.38900715,146.86,146.79,27.08]
[1745803021544,7.38900715,146.84,146.79,27.08]
[1745803022252,27.06,146.85,146.73,2.0654]
[1745803022548,7.38900715,146.76,146.7,27.06]
[1745803022855,6.8124,146.75,146.7,33.8741]
[1745803024751,27.06,146.79,146.7,27.06]
[1745803025356,27.06,146.79,146.74,6.8125]
[1745803025655,27.06,146.79,146.7,27.06]
[1745803025852,27.06,146.79,146.74,6.8125]
[1745803026053,27.06,146.79,146.7,27.06]
[1745803027755,6.8108,146.78,146.74,6.8122]
[1745803028156,27.06,146.79,146.74,6.8122]
[1745803028356,6.812,146.76,146.72,6.8134]
[1745803028852,6.8121,146.75,146.71,6.8139]
[1745803031256,11.8330751,146.77,146.7,27.06]
[1745803031452,11.8330751,146.77,146.67,33.1531]
[1745803031752,6.8129,146.74,146.67,33.1531]
[1745803031956,27.06,146.75,146.67,33.1531]
[1745803032459,6.8138,146.72,146.68,6.8152]
[1745803032958,6.8138,146.72,146.69,6.8149]
[1745803034960,6.8131,146.73,146.69,6.8149]
[1745803035157,27.06,146.75,146.71,6.8139]
[1745803036259,33.8722,146.75,146.71,6.8139]
[1745803036558,11.8330751,146.73,146.63,27.08]
[1745803036761,11.8330751,146.73,146.63,33.0986]
[1745803038562,6.8135,146.72,146.68,6.8149]
[1745803040267,11.8330751,146.73,146.66,6.8158]
[1745803040455,11.8330751,146.73,146.63,33.0986]
[1745803040761,6.8153,146.68,146.64,6.817]
[1745803040966,38.9130751,146.7,146.63,27.08]
[1745803041266,38.9130751,146.7,146.6,27.08]
[1745803041465,6.8161,146.67,146.63,6.8176]
[1745803041768,38.9130751,146.7,146.63,6.8176]
[1745803041964,6.8157,146.68,146.6,27.08]
[1745803042269,38.9130751,146.7,146.6,27.08]
[1745803042468,11.8330751,146.66,146.59,6.1329]
[1745803042766,27.08,146.65,146.59,4.0973]
[1745803043566,6.8177,146.63,146.59,10.9164]
[1745803044367,6.8173,146.64,146.59,4.0973]
[1745803044561,34.48604061,146.65,146.59,4.0973]
[1745803044964,34.48604061,146.65,146.62,6.818]
[1745803044965,27.08,146.65,146.62,6.818]
[1745803045164,6.8164,146.66,146.62,6.818]
[1745803045572,33.8955,146.68,146.64,6.8169]
[1745803045967,27.08,146.68,146.6,9.44604061]
[1745803046263,6.8164,146.66,146.62,6.8177]
[1745803046469,27.08,146.68,146.6,2.04]
[1745803047071,6.8161,146.67,146.63,6.8173]
[1745803047272,6.8161,146.67,146.6,2.04]
[1745803047770,7.40604061,146.67,146.6,2.04]
[1745803048274,7.40604061,146.67,146.61,6.8185]
[1745803049075,7.40604061,146.67,146.59,31.1773]
[1745803049574,6.8175,146.64,146.6,6.8189]
[1745803049876,6.8175,146.64,146.59,31.1773]
[1745803050177,6.8175,146.64,146.6,6.8189]
[1745803050876,6.8169,146.65,146.61,6.8185]
[1745803051974,6.8172,146.64,146.61,6.8185]
[1745803052177,7.40604061,146.66,146.62,6.8181]
[1745803052475,34.48604061,146.68,146.59,38.58334061]
[1745803052675,6.8164,146.66,146.59,38.58334061]
[1745803052875,6.8164,146.66,146.63,6.8175]
[1745803053173,27.06,146.69,146.61,7.40604061]
[1745803053370,27.06,146.69,146.63,7.40604061]
[1745803053566,36.45374061,146.72,146.63,34.46604061]
[1745803053964,36.45374061,146.72,146.66,6.816]
[1745803054274,6.8147,146.7,146.63,34.46604061]
[1745803054577,36.45374061,146.72,146.67,6.8155]
[1745803054775,35.8615,146.72,146.65,7.40604061]
[1745803054976,29.0477,146.72,146.65,7.40604061]
[1745803055273,7.40604061,146.7,146.63,27.06]
[1745803055773,36.45374061,146.72,146.63,27.06]
[1745803055974,6.8141,146.71,146.63,27.06]
[1745803056171,6.8141,146.71,146.67,6.8155]
[1745803056376,36.45374061,146.72,146.67,6.8155]
[1745803057176,6.8141,146.71,146.67,6.8155]
[1745803057378,36.45374061,146.72,146.66,6.8161]
[1745803057677,34.46604061,146.72,146.66,6.8161]
[1745803057978,6.8147,146.7,146.66,6.8161]
[1745803058174,7.40604061,146.7,146.63,27.06]
[1745803058475,7.40604061,146.68,146.63,27.06]
[1745803058670,6.8162,146.67,146.64,6.8171]
[1745803058976,7.40604061,146.68,146.64,6.8171]
[1745803059173,7.40604061,146.7,146.63,27.06]
[1745803059377,34.46604061,146.72,146.63,27.06]
[1745803059578,6.8147,146.7,146.63,27.06]
[1745803059880,6.8147,146.7,146.66,6.816]
[1745803060178,6.8147,146.7,146.63,27.06]
[1745803060378,34.46604061,146.72,146.63,27.06]
[1745803060578,34.46604061,146.72,146.64,7.40604061]
[1745803061179,27.06,146.72,146.64,7.40604061]
[1745803061479,7.40604061,146.74,146.65,4.2202]
[1745803061778,14.21874061,146.74,146.7,6.814]
[1745803061978,14.21874061,146.74,146.67,27.06]
[1745803062480,7.40604061,146.74,146.67,27.06]
[1745803063079,6.8132,146.73,146.7,6.8143]
[1745803063278,7.40604061,146.74,146.67,27.06]
[1745803063678,6.8124,146.75,146.67,27.06]
[1745803063878,6.8124,146.75,146.68,2.0056]
[1745803064179,43.23074061,146.76,146.72,6.8133]
[1745803064377,36.41894061,146.76,146.72,6.8133]
[1745803064979,43.23064061,146.76,146.72,6.8133]
[1745803065179,43.23064061,146.76,146.73,6.8128]
[1745803065375,34.46604061,146.76,146.73,6.8128]
[1745803065975,34.46604061,146.76,146.72,6.8133]
[1745803066481,41.27784061,146.76,146.72,6.8133]
[1745803069082,6.8122,146.75,146.71,6.8138]
[1745803069878,7.40604061,146.72,146.65,4.2202]
[1745803070581,7.40604061,146.75,146.65,11.62624061]
[1745803071287,6.8128,146.74,146.7,6.8143]
[1745803073286,7.40604061,146.73,146.67,27.06]
[1745803073486,7.40604061,146.71,146.65,4.2202]
[1745803073791,7.40604061,146.71,146.68,6.815]
[1745803073989,7.40604061,146.73,146.65,11.62624061]
[1745803074386,14.21934061,146.73,146.69,6.8145]
[1745803074686,34.46604061,146.75,146.65,11.62624061]
[1745803074887,6.8127,146.74,146.7,6.8141]
[1745803075081,34.46604061,146.75,146.7,6.8141]
[1745803075492,6.8128,146.74,146.7,6.8141]
[1745803076092,6.8128,146.74,146.71,6.8139]
[1745803076892,6.8128,146.74,146.69,6.8145]
[1745803077794,6.8132,146.73,146.69,6.8145]
[1745803080295,34.46604061,146.75,146.69,6.8145]
[1745803080597,7.40604061,146.71,146.65,27.06]
[1745803080797,34.46604061,146.71,146.62,27.06]
[1745803080997,6.8157,146.68,146.62,27.06]
[1745803081398,6.8157,146.68,146.64,6.8169]
[1745803082894,7.40604061,146.69,146.62,33.878]
[1745803083090,7.40604061,146.65,146.58,27.02]
[1745803084290,6.8184,146.62,146.58,33.8397]
[1745803084698,6.8184,146.62,146.58,6.8197]
[1745803085695,7.40604061,146.61,146.54,1.9873]
[1745803086290,7.40604061,146.59,146.49,27.02]
[1745803086493,7.40604061,146.57,146.49,27.02]
[1745803087506,14.22664061,146.57,146.52,6.8224]
[1745803087804,27.02,146.58,146.5,7.40604061]
[1745803089203,34.42604061,146.58,146.48,8.20566098]
[1745803089399,34.42604061,146.58,146.48,15.61170159]
[1745803089700,6.8218,146.55,146.5,6.8236]
[1745803090395,7.40604061,146.56,146.49,6.824]
[1745803090396,27.04,146.54,146.49,6.824]
[1745803090900,33.862,146.54,146.5,6.8236]
[1745803091106,27.04,146.54,146.5,6.8236]
[1745803091996,27.04,146.54,146.49,6.8241]
[1745803092300,27.04,146.54,146.48,8.20566098]
[1745803092301,7.40604061,146.5,146.48,8.20566098]
[1745803092607,27.04,146.51,146.48,8.20566098]
[1745803092907,27.04,146.52,146.48,8.20566098]
[1745803093102,27.04,146.55,146.48,8.20566098]
[1745803093302,33.8615,146.55,146.48,8.20566098]
[1745803093504,34.44604061,146.55,146.48,8.20566098]
[1745803094107,34.44604061,146.55,146.5,6.8236]
[1745803094307,34.44604061,146.55,146.48,8.20566098]
[1745803094806,27.04,146.55,146.48,8.20566098]
[1745803095209,27.04,146.55,146.51,6.8229]
[1745803095904,33.8614,146.55,146.51,6.8229]
[1745803097611,6.8219,146.54,146.5,6.8236]
[1745803098006,6.8219,146.54,146.48,8.20566098]
[1745803098210,6.8225,146.53,146.49,6.824]
[1745803098909,7.40604061,146.51,146.48,8.20566098]
[1745803099314,7.40604061,146.49,146.48,8.20566098]
[1745803099608,14.23024061,146.49,146.48,8.20566098]
[1745803099808,7.40604061,146.49,146.48,8.20566098]
[1745803101308,14.23024061,146.49,146.48,8.20566098]
[1745803103112,6.825,146.48,146.41,27.06]
[1745803103311,7.40604061,146.49,146.41,27.06]
[1745803104014,6.8246,146.48,146.44,6.8262]
[1745803105012,7.40604061,146.49,146.45,6.826]
[1745803105013,14.23034061,146.49,146.45,6.826]
[1745803105214,7.40604061,146.47,146.41,27.06]
[1745803105414,34.46604061,146.47,146.38,27.06]
[1745803105910,7.40604061,146.49,146.41,7.40604061]
[1745803106118,27.06,146.51,146.45,7.40604061]
[1745803106315,34.46604061,146.55,146.45,7.40604061]
[1745803106515,6.8225,146.53,146.49,6.8239]
[1745803106916,7.40604061,146.53,146.46,1.9426]
[1745803107512,6.8229,146.52,146.46,1.9426]
[1745803107720,34.46604061,146.55,146.46,1.9426]
[1745803108719,6.8222,146.54,146.5,6.8234]
[1745803110219,6.8223,146.53,146.49,6.824]
[1745803111119,6.8228,146.52,146.48,6.8245]
[1745803111319,7.40604061,146.53,146.44,27.06]
[1745803111818,7.40604061,146.49,146.41,27.06]
[1745803112019,34.46604061,146.49,146.41,27.06]
[1745803112615,27.06,146.49,146.41,27.06]
[1745803112819,7.40604061,146.51,146.41,27.06]
[1745803113020,27.06,146.5,146.41,34.46604061]
[1745803113321,6.8243,146.49,146.44,6.826]
[1745803113622,27.06,146.5,146.41,34.46604061]
[1745803113913,33.8838,146.5,146.41,34.46604061]
[1745803115420,6.8242,146.49,146.41,34.46604061]
[1745803115716,6.8242,146.49,146.45,6.8257]
[1745803116015,27.06,146.5,146.43,7.40604061]
[1745803116213,34.44604061,146.53,146.44,29.0602]
[1745803116416,6.823,146.52,146.48,6.8243]
[1745803116617,34.44604061,146.53,146.45,11.46434061]
[1745803117218,6.8229,146.52,146.48,6.8245]
[1745803117821,6.8234,146.51,146.48,6.8245]
[1745803118917,7.40604061,146.51,146.44,29.0602]
[1745803119318,6.8245,146.49,146.46,6.8255]
[1745803119524,7.40604061,146.51,146.44,29.0602]
[1745803119924,6.8242,146.49,146.45,6.8257]
[1745803120427,6.8238,146.5,146.46,6.8254]
[1745803120724,7.40604061,146.51,146.44,29.0602]
[1745803120919,6.8229,146.52,146.45,7.40604061]
[1745803121125,490.88,146.6,146.47,7.40604061]
[1745803121327,34.44604061,146.58,146.49,7.40604061]
[1745803121527,6.8217,146.55,146.51,6.823]
[1745803123231,6.8217,146.55,146.52,6.8226]
[1745803123421,6.8206,146.57,146.49,7.40604061]
[1745803123626,27.04,146.58,146.51,7.40604061]
[1745803123828,27.04,146.58,146.54,6.8215]
[1745803124129,33.8603,146.58,146.54,6.8215]
[1745803124427,2.0765,146.59,146.54,6.8215]
[1745803124827,6.8201,146.58,146.54,6.8215]
[1745803125635,27.02,146.6,146.52,27.02]
[1745803125835,27.02,146.6,146.52,33.091]
[1745803126233,33.8394,146.6,146.56,6.8208]
[1745803126731,33.8394,146.6,146.57,6.8204]
[1745803126929,7.40604061,146.6,146.52,33.091]
[1745803127330,6.8198,146.59,146.52,33.091]
[1745803128939,6.8198,146.59,146.55,6.8211]
[1745803129334,6.82,146.58,146.55,6.8211]
[1745803129539,7.40604061,146.6,146.55,6.8211]
[1745803129736,7.40604061,146.6,146.56,6.8209]
[1745803129937,7.40604061,146.62,146.53,7.40604061]
[1745803130639,6.819,146.61,146.56,6.8205]
[1745803130838,6.819,146.61,146.53,7.40604061]
[1745803131237,6.8191,146.6,146.56,6.8207]
[1745803132243,6.8191,146.6,146.57,6.8204]
[1745803132444,6.8187,146.61,146.57,6.8204]
[1745803132944,6.8183,146.62,146.58,6.8199]
[1745803133141,27.02,146.63,146.56,27.02]
[1745803133441,6.8179,146.63,146.59,6.8194]
[1745803134542,7.40604061,146.64,146.59,6.8194]
[1745803134748,7.40604061,146.64,146.57,6.8204]
[1745803135346,6.8189,146.61,146.57,6.8204]
[1745803135947,6.8183,146.62,146.56,27.02]
[1745803136148,34.42604061,146.66,146.56,27.02]
[1745803136442,6.8168,146.65,146.61,6.8183]
[1745803136848,34.42604061,146.66,146.61,6.8183]
[1745803137050,6.8176,146.64,146.6,6.819]
[1745803137243,34.42604061,146.66,146.6,6.819]
[1745803137648,6.8176,146.64,146.6,6.819]
[1745803137948,34.42604061,146.66,146.6,6.819]
[1745803138149,6.8178,146.63,146.59,6.8193]
[1745803138543,34.42604061,146.66,146.59,6.8193]
[1745803138749,6.8182,146.62,146.58,8.7543]
[1745803139554,6.8187,146.61,146.57,6.8203]
[1745803139946,6.8187,146.61,146.56,27.02]
[1745803140553,7.40604061,146.64,146.59,6.8195]
[1745803141151,6.8178,146.63,146.59,6.8195]
[1745803141347,7.40604061,146.64,146.6,6.8189]
[1745803141548,34.42604061,146.66,146.6,6.8189]
[1745803141750,34.42604061,146.66,146.62,6.8181]
[1745803141947,2.0342,146.71,146.61,34.42604061]
[1745803142147,7.40604061,146.71,146.63,7.40604061]
[1745803142350,34.42604061,146.73,146.67,6.8155]
[1745803142550,34.42604061,146.73,146.63,34.42604061]
[1745803143050,6.8147,146.7,146.66,6.8159]
[1745803143255,6.8147,146.7,146.63,34.42604061]
[1745803143450,34.42604061,146.73,146.65,7.40604061]
[1745803143649,27.02,146.73,146.65,7.40604061]
[1745803143845,7.40604061,146.73,146.63,27.02]
[1745803144051,7.40604061,146.67,146.62,4.1303]
[1745803144244,7.40604061,146.65,146.6,26.98]
[1745803144852,6.8164,146.66,146.6,26.98]
[1745803145148,6.8157,146.68,146.6,34.38604061]
[1745803145350,7.40604061,146.67,146.61,4.0109]
[1745803145547,7.40604061,146.67,146.61,1.9643]
[1745803146050,6.8166,146.66,146.61,8.7829]
[1745803146447,6.8168,146.65,146.61,1.9643]
[1745803146853,7.40604061,146.67,146.6,26.98]
[1745803147052,7.40604061,146.65,146.6,26.98]
[1745803147255,7.40604061,146.61,146.55,1.9643]
[1745803147853,6.8193,146.6,146.55,8.7854]
[1745803149863,6.8193,146.6,146.56,6.8208]
[1745803150062,6.8196,146.59,146.55,1.9643]
[1745803150454,6.8196,146.59,146.55,8.7853]
[1745803151562,6.8196,146.59,146.56,6.8209]
[1745803152766,6.8196,146.59,146.55,8.7855]
[1745803153766,6.8192,146.6,146.56,6.8209]
[1745803153967,7.40604061,146.61,146.55,1.9643]
[1745803154567,7.40604061,146.61,146.56,6.8207]
[1745803155469,6.8192,146.6,146.57,6.8204]
[1745803155669,6.8192,146.6,146.55,1.9643]
[1745803156463,7.40604061,146.61,146.55,1.9643]
[1745803156669,6.8196,146.59,146.54,29.0266]
[1745803157569,7.40604061,146.61,146.54,29.0266]
[1745803157765,34.38604061,146.63,146.54,36.43264061]
[1745803157970,34.38604061,146.63,146.55,2.0066]
[1745803158274,6.8185,146.62,146.58,6.82]
[1745803158872,6.8187,146.61,146.58,6.82]
[1745803159072,6.8187,146.61,146.57,6.8203]
[1745803159663,6.8187,146.61,146.58,6.8198]
[1745803159873,6.8187,146.61,146.55,2.0066]
[1745803160577,6.8187,146.61,146.57,6.8201]
[1745803160771,26.98,146.63,146.56,7.40604061]
[1745803160977,9.34154061,146.65,146.56,7.40604061]
[1745803161177,9.34154061,146.65,146.59,6.8192]
[1745803161475,6.8178,146.63,146.59,6.8192]
[1745803161673,7.40604061,146.65,146.6,6.819]
[1745803161870,7.40604061,146.65,146.58,26.98]
[1745803162078,29.0505,146.66,146.6,6.8189]
[1745803162379,6.8199,146.59,146.55,2.0066]
[1745803162575,7.40604061,146.61,146.55,2.0066]
[1745803164178,6.8195,146.59,146.56,6.8209]
[1745803164676,6.8192,146.6,146.56,6.8209]
[1745803164882,26.98,146.62,146.55,2.0066]
[1745803165684,26.98,146.62,146.55,9.41264061]
[1745803165883,7.40604061,146.65,146.57,7.40604061]
[1745803166078,7.40604061,146.65,146.58,26.98]
[1745803166273,6.8179,146.63,146.59,6.8192]
[1745803166582,7.40604061,146.65,146.58,26.98]